[Event "Late-Titled-Tuesday-Blitz-August-29-2023"]
[Site "Chess.com"]
[Date "2023.08.29"]
[Round "7"]
[White "Sajkochess"]
[Black "Zq1"]
[Result "0-1"]
[WhiteElo "2412"]
[BlackElo "2523"]
[TimeControl "180+1"]
[EndTime "15:16:48 PDT"]
[Termination "Zq1 won on time"]

1. e4 {[%clk 0:03:00.9]} 1... c5 {[%clk 0:02:58.9]} 2. Nf3 {[%clk 0:03:00.4]}
2... d6 {[%clk 0:02:58.6]} 3. d4 {[%clk 0:03:00.9]} 3... cxd4 {[%clk 0:02:58.8]}
4. Nxd4 {[%clk 0:03:01.8]} 4... Nf6 {[%clk 0:02:58.7]} 5. Nc3 {[%clk 0:03:02.4]}
5... Nc6 {[%clk 0:02:58.8]} 6. g3 {[%clk 0:03:01.4]} 6... g6 {[%clk 0:02:55.6]}
7. Nde2 {[%clk 0:03:00.5]} 7... b6 {[%clk 0:02:54.7]} 8. Bg2 {[%clk 0:03:00]}
8... Ba6 {[%clk 0:02:54]} 9. O-O {[%clk 0:02:44.7]} 9... Rc8 {[%clk 0:02:52.5]}
10. Re1 {[%clk 0:02:44.6]} 10... Bg7 {[%clk 0:02:52.1]} 11. Bg5 {[%clk 0:02:37]}
11... O-O {[%clk 0:02:49.9]} 12. Nd5 {[%clk 0:02:31.9]} 12... e6 {[%clk
0:02:46.4]} 13. Nxf6+ {[%clk 0:02:20.9]} 13... Bxf6 {[%clk 0:02:46.1]} 14. Bxf6
{[%clk 0:02:20.3]} 14... Qxf6 {[%clk 0:02:45]} 15. c3 {[%clk 0:02:18]} 15...
Rfd8 {[%clk 0:02:44.2]} 16. Nf4 {[%clk 0:01:20.8]} 16... Ne5 {[%clk 0:02:41.1]}
17. Qa4 {[%clk 0:01:19.7]} 17... Bb7 {[%clk 0:02:25.5]} 18. Rad1 {[%clk
0:01:04.8]} 18... a6 {[%clk 0:02:21.4]} 19. Qd4 {[%clk 0:01:00.3]} 19... Rb8
{[%clk 0:02:15.3]} 20. Re3 {[%clk 0:00:47.8]} 20... Ng4 {[%clk 0:02:03.1]} 21.
Qxf6 {[%clk 0:00:41.2]} 21... Nxf6 {[%clk 0:02:03]} 22. Red3 {[%clk 0:00:26]}
22... Nxe4 {[%clk 0:01:57.9]} 23. Bxe4 {[%clk 0:00:24]} 23... Bxe4 {[%clk
0:01:56.7]} 24. Rxd6 {[%clk 0:00:24.5]} 24... Rxd6 {[%clk 0:01:56]} 25. Rxd6
{[%clk 0:00:25.4]} 25... Kf8 {[%clk 0:01:54.2]} 26. Rd7 {[%clk 0:00:20.4]} 26...
Ke8 {[%clk 0:01:44.1]} 27. Ra7 {[%clk 0:00:20.3]} 27... Rd8 {[%clk 0:01:37.2]}
28. f3 {[%clk 0:00:20.7]} 28... Bxf3 {[%clk 0:01:35.7]} 29. Kf2 {[%clk
0:00:21.1]} 29... Bh1 {[%clk 0:01:25.3]} 30. Ke3 {[%clk 0:00:19.5]} 30... a5
{[%clk 0:01:22.6]} 31. Nd3 {[%clk 0:00:17.3]} 31... Rd7 {[%clk 0:01:09.8]} 32.
Ra6 {[%clk 0:00:15.1]} 32... Rb7 {[%clk 0:01:07.5]} 33. Ra8+ {[%clk 0:00:05.9]}
33... Ke7 {[%clk 0:01:06.5]} 34. Rh8 {[%clk 0:00:04.3]} 34... h5 {[%clk
0:01:05.3]} 35. Ne5 {[%clk 0:00:04.5]} 35... Kf6 {[%clk 0:01:01.9]} 36. Nc4
{[%clk 0:00:03.9]} 36... a4 {[%clk 0:00:53.2]} 37. Nd6 {[%clk 0:00:02.2]} 37...
Rd7 {[%clk 0:00:47.4]} 38. Ne8+ {[%clk 0:00:02.5]} 38... Ke5 {[%clk 0:00:44.8]}
39. Ng7 {[%clk 0:00:02.8]} 39... Be4 {[%clk 0:00:39.2]} 40. Rb8 {[%clk
0:00:02.7]} 40... Rb7 {[%clk 0:00:33.6]} 41. Rxb7 {[%clk 0:00:02.7]} 41... Bxb7
{[%clk 0:00:32.6]} 42. b3 {[%clk 0:00:03.2]} 42... a3 {[%clk 0:00:29.2]} 43. Ne8
{[%clk 0:00:02.9]} 43... g5 {[%clk 0:00:23.4]} 44. Nc7 {[%clk 0:00:02.9]} 44...
Bc6 {[%clk 0:00:21.7]} 45. Na6 {[%clk 0:00:02.5]} 45... f5 {[%clk 0:00:20]} 46.
Nb4 {[%clk 0:00:02.7]} 46... f4+ {[%clk 0:00:19.3]} 47. gxf4+ {[%clk 0:00:03.2]}
47... gxf4+ {[%clk 0:00:19.7]} 48. Kf2 {[%clk 0:00:03.7]} 48... Be4 {[%clk
0:00:19.4]} 49. c4 {[%clk 0:00:01.8]} 49... Kd4 {[%clk 0:00:18.6]} 50. Ke2
{[%clk 0:00:01.9]} 50... Kc3 {[%clk 0:00:18.6]} 51. Na6 {[%clk 0:00:01.4]} 51...
Bb7 {[%clk 0:00:16.8]} 0-1

[Event "Late-Titled-Tuesday-Blitz-August-29-2023"]
[Site "Chess.com"]
[Date "2023.08.29"]
[Round "7"]
[White "betta2004"]
[Black "TigrVShlyape"]
[Result "1/2-1/2"]
[WhiteElo "2574"]
[BlackElo "2853"]
[TimeControl "180+1"]
[EndTime "15:16:50 PDT"]
[Termination "Game drawn by repetition"]

1. d4 {[%clk 0:02:59.8]} 1... Nf6 {[%clk 0:02:49.1]} 2. Nc3 {[%clk 0:03:00.7]}
2... d5 {[%clk 0:02:48.4]} 3. Bf4 {[%clk 0:03:00.2]} 3... Bf5 {[%clk 0:02:46.6]}
4. f3 {[%clk 0:02:49.7]} 4... e6 {[%clk 0:02:40.2]} 5. g4 {[%clk 0:02:48.5]}
5... Bg6 {[%clk 0:02:39.9]} 6. h4 {[%clk 0:02:48.6]} 6... h6 {[%clk 0:02:36.3]}
7. Qd2 {[%clk 0:02:46.8]} 7... a6 {[%clk 0:02:25.8]} 8. e3 {[%clk 0:02:45.3]}
8... c5 {[%clk 0:02:25.2]} 9. Bd3 {[%clk 0:02:43.5]} 9... Bxd3 {[%clk 0:02:24]}
10. Qxd3 {[%clk 0:02:44.4]} 10... Nc6 {[%clk 0:02:23.6]} 11. Nge2 {[%clk
0:02:43.5]} 11... cxd4 {[%clk 0:02:10.2]} 12. exd4 {[%clk 0:02:43.3]} 12... Bd6
{[%clk 0:02:09.2]} 13. O-O-O {[%clk 0:02:42.4]} 13... Qc7 {[%clk 0:02:00.8]} 14.
Qe3 {[%clk 0:02:38.9]} 14... O-O-O {[%clk 0:01:59]} 15. g5 {[%clk 0:02:32.9]}
15... Nh5 {[%clk 0:01:57.5]} 16. Bxd6 {[%clk 0:02:32.9]} 16... Qxd6 {[%clk
0:01:56]} 17. f4 {[%clk 0:02:29.2]} 17... g6 {[%clk 0:01:53.9]} 18. Rdf1 {[%clk
0:02:23.3]} 18... Ng7 {[%clk 0:01:52.9]} 19. Ng3 {[%clk 0:02:22.3]} 19... h5
{[%clk 0:01:51.9]} 20. Nd1 {[%clk 0:02:20.7]} 20... Ne7 {[%clk 0:01:48.5]} 21.
Nf2 {[%clk 0:02:19.9]} 21... Ngf5 {[%clk 0:01:47.8]} 22. Nxf5 {[%clk 0:02:20.5]}
22... Nxf5 {[%clk 0:01:47.8]} 23. Qd2 {[%clk 0:02:21.1]} 23... Kb8 {[%clk
0:01:46.3]} 24. Rh3 {[%clk 0:02:21.2]} 24... Rc8 {[%clk 0:01:45.1]} 25. c3
{[%clk 0:02:21.3]} 25... Qb6 {[%clk 0:01:37.6]} 26. Kb1 {[%clk 0:02:20.4]} 26...
Rc7 {[%clk 0:01:35]} 27. Nd3 {[%clk 0:02:20.4]} 27... Rhc8 {[%clk 0:01:35.1]}
28. Ne5 {[%clk 0:02:20.9]} 28... Ka8 {[%clk 0:01:32.6]} 29. Rc1 {[%clk
0:02:19.5]} 29... Qb5 {[%clk 0:01:24.1]} 30. b3 {[%clk 0:02:04.2]} 30... Qb6
{[%clk 0:01:23.2]} 31. Kb2 {[%clk 0:02:02.8]} 31... Qd6 {[%clk 0:01:11.5]} 32.
a3 {[%clk 0:01:57.2]} 32... b6 {[%clk 0:01:09]} 33. a4 {[%clk 0:01:46.4]} 33...
a5 {[%clk 0:01:05.6]} 34. Qd3 {[%clk 0:01:44.6]} 34... Kb8 {[%clk 0:01:03.7]}
35. Rhh1 {[%clk 0:01:35.5]} 35... Rb7 {[%clk 0:01:01.9]} 36. Qb5 {[%clk
0:01:35.3]} 36... Qc7 {[%clk 0:00:59.4]} 37. Rhd1 {[%clk 0:01:32.4]} 37... Nd6
{[%clk 0:00:59]} 38. Qd3 {[%clk 0:01:32.2]} 38... b5 {[%clk 0:00:57.8]} 39. axb5
{[%clk 0:01:30]} 39... Rxb5 {[%clk 0:00:57.9]} 40. Ra1 {[%clk 0:01:27.9]} 40...
Nc4+ {[%clk 0:00:45.3]} 41. Kc2 {[%clk 0:01:19.4]} 41... Nd6 {[%clk 0:00:44.9]}
42. Ra4 {[%clk 0:01:13.2]} 42... Qb7 {[%clk 0:00:43.7]} 43. Ra3 {[%clk 0:01:05]}
43... Ne4 {[%clk 0:00:40.1]} 44. c4 {[%clk 0:00:52.3]} 44... Nf2 {[%clk
0:00:34.6]} 45. Qc3 {[%clk 0:00:46.1]} 45... Nxd1 {[%clk 0:00:34.3]} 46. Kxd1
{[%clk 0:00:47]} 46... dxc4 {[%clk 0:00:33.9]} 47. bxc4 {[%clk 0:00:47.3]} 47...
Qh1+ {[%clk 0:00:31.1]} 48. Kd2 {[%clk 0:00:45.2]} 48... Qg2+ {[%clk 0:00:30.2]}
49. Kd3 {[%clk 0:00:41.8]} 49... Qg3+ {[%clk 0:00:21.7]} 50. Ke4 {[%clk
0:00:41.3]} 50... Qg2+ {[%clk 0:00:18.9]} 51. Kd3 {[%clk 0:00:33]} 51... Qf1+
{[%clk 0:00:18.2]} 52. Ke3 {[%clk 0:00:29.2]} 52... Rb1 {[%clk 0:00:10.9]} 53.
Rb3+ {[%clk 0:00:27.7]} 53... Rxb3 {[%clk 0:00:10.5]} 54. Qxb3+ {[%clk
0:00:28.6]} 54... Ka7 {[%clk 0:00:10.5]} 55. Qb5 {[%clk 0:00:25.6]} 55... Qe1+
{[%clk 0:00:10.1]} 56. Kf3 {[%clk 0:00:22.8]} 56... Qd1+ {[%clk 0:00:10.4]} 57.
Ke3 {[%clk 0:00:23.1]} 57... Qe1+ {[%clk 0:00:10.7]} 58. Kf3 {[%clk 0:00:23.7]}
58... Qd1+ {[%clk 0:00:10.6]} 59. Ke3 {[%clk 0:00:23.3]} 59... Qe1+ {[%clk
0:00:10.9]} 1/2-1/2

[Event "Late-Titled-Tuesday-Blitz-August-29-2023"]
[Site "Chess.com"]
[Date "2023.08.29"]
[Round "7"]
[White "scandalgod"]
[Black "Lennis93"]
[Result "1-0"]
[WhiteElo "2504"]
[BlackElo "2685"]
[TimeControl "180+1"]
[EndTime "15:16:51 PDT"]
[Termination "scandalgod won by checkmate"]

1. d4 {[%clk 0:02:52.7]} 1... Nf6 {[%clk 0:02:59.1]} 2. c4 {[%clk 0:02:51.2]}
2... e6 {[%clk 0:02:57.7]} 3. g3 {[%clk 0:02:47.2]} 3... Bb4+ {[%clk 0:02:56.1]}
4. Bd2 {[%clk 0:02:46.3]} 4... Be7 {[%clk 0:02:56.8]} 5. Bg2 {[%clk 0:02:43.8]}
5... d5 {[%clk 0:02:57.4]} 6. Nf3 {[%clk 0:02:44.1]} 6... dxc4 {[%clk
0:02:56.9]} 7. Qc2 {[%clk 0:02:42.9]} 7... b5 {[%clk 0:02:54.7]} 8. a4 {[%clk
0:02:41.7]} 8... b4 {[%clk 0:02:50]} 9. Ne5 {[%clk 0:02:34.7]} 9... Nd5 {[%clk
0:02:49.2]} 10. Nxc4 {[%clk 0:02:33.8]} 10... O-O {[%clk 0:02:47.1]} 11. O-O
{[%clk 0:02:33.6]} 11... a5 {[%clk 0:02:46.1]} 12. Rd1 {[%clk 0:02:33]} 12... f5
{[%clk 0:02:31]} 13. e4 {[%clk 0:02:26.1]} 13... fxe4 {[%clk 0:02:30.7]} 14.
Qxe4 {[%clk 0:02:26.2]} 14... Nc6 {[%clk 0:02:17.5]} 15. Ne3 {[%clk 0:02:19.5]}
15... Ra6 {[%clk 0:01:55.9]} 16. Nxd5 {[%clk 0:02:14]} 16... exd5 {[%clk
0:01:56.8]} 17. Qxd5+ {[%clk 0:02:13.9]} 17... Kh8 {[%clk 0:01:48.1]} 18. Be3
{[%clk 0:01:59.1]} 18... Bg4 {[%clk 0:01:44.2]} 19. Rc1 {[%clk 0:01:58.4]} 19...
Rf6 {[%clk 0:00:55.3]} 20. Qxd8+ {[%clk 0:01:50.7]} 20... Bxd8 {[%clk
0:00:45.4]} 21. Nd2 {[%clk 0:01:50.5]} 21... Ne7 {[%clk 0:00:38.5]} 22. Ne4
{[%clk 0:01:47]} 22... Rf8 {[%clk 0:00:31]} 23. Nc5 {[%clk 0:01:45.5]} 23... Rg6
{[%clk 0:00:23.7]} 24. Bf4 {[%clk 0:01:37.6]} 24... c6 {[%clk 0:00:23.9]} 25.
Nd3 {[%clk 0:01:17.8]} 25... Bf5 {[%clk 0:00:14.5]} 26. Ne5 {[%clk 0:01:16.5]}
26... Re6 {[%clk 0:00:14.4]} 27. Nxc6 {[%clk 0:01:07.8]} 27... Bb6 {[%clk
0:00:14.5]} 28. Nxe7 {[%clk 0:00:36.1]} 28... Rxe7 {[%clk 0:00:15.4]} 29. Be5
{[%clk 0:00:36]} 29... Bd3 {[%clk 0:00:12.7]} 30. Rc6 {[%clk 0:00:32.6]} 30...
Rxe5 {[%clk 0:00:11.7]} 31. dxe5 {[%clk 0:00:26.1]} 31... Bxf2+ {[%clk
0:00:12.6]} 32. Kh1 {[%clk 0:00:26.4]} 32... b3 {[%clk 0:00:10.4]} 33. e6 {[%clk
0:00:24.5]} 33... g6 {[%clk 0:00:10.8]} 34. e7 {[%clk 0:00:21.9]} 34... Re8
{[%clk 0:00:10.9]} 35. Rd1 {[%clk 0:00:19.7]} 35... Rxe7 {[%clk 0:00:05.8]} 36.
Rf6 {[%clk 0:00:18.9]} 36... Bc2 {[%clk 0:00:05.6]} 37. Rd8+ {[%clk 0:00:17.2]}
37... Kg7 {[%clk 0:00:06.1]} 38. Rxf2 {[%clk 0:00:17.3]} 38... Re1+ {[%clk
0:00:06.7]} 39. Rf1 {[%clk 0:00:17.6]} 39... Re2 {[%clk 0:00:07.4]} 40. Rd7+
{[%clk 0:00:16.3]} 40... Kh6 {[%clk 0:00:07.2]} 41. Rdf7 {[%clk 0:00:16]} 41...
Bf5 {[%clk 0:00:07]} 42. Rb7 {[%clk 0:00:14.1]} 42... Rxb2 {[%clk 0:00:07.3]}
43. h3 {[%clk 0:00:14.4]} 43... Bc2 {[%clk 0:00:07.9]} 44. g4 {[%clk 0:00:14.2]}
44... Ra2 {[%clk 0:00:08.5]} 45. Kh2 {[%clk 0:00:14]} 45... Rxa4 {[%clk
0:00:08.3]} 46. Rff7 {[%clk 0:00:13.5]} 46... Kg5 {[%clk 0:00:07.9]} 47. Kg3
{[%clk 0:00:13.6]} 47... Rb4 {[%clk 0:00:05.9]} 48. h4+ {[%clk 0:00:13.2]} 48...
Kh6 {[%clk 0:00:04.7]} 49. Rxh7# {[%clk 0:00:13.5]} 1-0

[Event "Late-Titled-Tuesday-Blitz-August-29-2023"]
[Site "Chess.com"]
[Date "2023.08.29"]
[Round "7"]
[White "ShiroglanTalibov"]
[Black "Rud_Makarian"]
[Result "0-1"]
[WhiteElo "2857"]
[BlackElo "3015"]
[TimeControl "180+1"]
[EndTime "15:16:53 PDT"]
[Termination "Rud_Makarian won on time"]

1. e4 {[%clk 0:03:00.9]} 1... c5 {[%clk 0:03:00.4]} 2. Nf3 {[%clk 0:03:00.6]}
2... Nc6 {[%clk 0:03:01.1]} 3. d4 {[%clk 0:02:54.6]} 3... cxd4 {[%clk 0:03:02]}
4. Nxd4 {[%clk 0:02:55.5]} 4... Nf6 {[%clk 0:03:02.8]} 5. Nc3 {[%clk 0:02:55.1]}
5... d6 {[%clk 0:03:03.5]} 6. Bg5 {[%clk 0:02:53.3]} 6... Bd7 {[%clk 0:03:03.9]}
7. Qd2 {[%clk 0:02:45.2]} 7... h6 {[%clk 0:03:04.3]} 8. Bh4 {[%clk 0:02:44.7]}
8... g5 {[%clk 0:02:54.5]} 9. Bg3 {[%clk 0:02:44.7]} 9... Bg7 {[%clk 0:02:55.2]}
10. Nxc6 {[%clk 0:02:36.1]} 10... Bxc6 {[%clk 0:02:54.1]} 11. f3 {[%clk
0:02:32.8]} 11... d5 {[%clk 0:02:43.7]} 12. exd5 {[%clk 0:02:29.8]} 12... Nxd5
{[%clk 0:02:43.7]} 13. Nxd5 {[%clk 0:02:29.9]} 13... Qxd5 {[%clk 0:02:41.7]} 14.
Qxd5 {[%clk 0:02:29.9]} 14... Bxd5 {[%clk 0:02:41.9]} 15. Bb5+ {[%clk
0:02:29.9]} 15... Kf8 {[%clk 0:02:17.4]} 16. O-O-O {[%clk 0:02:29.5]} 16... e6
{[%clk 0:02:14.4]} 17. Kb1 {[%clk 0:02:14.8]} 17... a6 {[%clk 0:02:10.3]} 18. c4
{[%clk 0:01:58.5]} 18... Bxf3 {[%clk 0:01:57.3]} 19. gxf3 {[%clk 0:01:59.4]}
19... axb5 {[%clk 0:01:58.1]} 20. cxb5 {[%clk 0:02:00.3]} 20... Ke7 {[%clk
0:01:58.8]} 21. Bd6+ {[%clk 0:01:42.7]} 21... Kf6 {[%clk 0:01:49.6]} 22. b3
{[%clk 0:01:36.7]} 22... Kf5 {[%clk 0:01:45.1]} 23. a4 {[%clk 0:01:35.4]} 23...
Rhd8 {[%clk 0:01:44.5]} 24. Bc7 {[%clk 0:01:33.2]} 24... Rd4 {[%clk 0:01:42.3]}
25. b6 {[%clk 0:01:16.8]} 25... Rb4 {[%clk 0:01:33.3]} 26. Ka2 {[%clk
0:01:00.3]} 26... Ra6 {[%clk 0:00:33]} 27. Rd7 {[%clk 0:00:58.3]} 27... Bd4
{[%clk 0:00:28]} 28. Rxf7+ {[%clk 0:00:45.5]} 28... Kg6 {[%clk 0:00:28.4]} 29.
Re7 {[%clk 0:00:42.9]} 29... Bxb6 {[%clk 0:00:20.7]} 30. Rxe6+ {[%clk
0:00:35.5]} 30... Kf5 {[%clk 0:00:21.1]} 31. Re5+ {[%clk 0:00:13.6]} 31... Kf6
{[%clk 0:00:21.4]} 32. Bb8 {[%clk 0:00:14.1]} 32... Ra8 {[%clk 0:00:15.7]} 33.
Re8 {[%clk 0:00:14.3]} 33... Bc7 {[%clk 0:00:14]} 34. Bxc7 {[%clk 0:00:09.4]}
34... Rxe8 {[%clk 0:00:13.6]} 35. Ka3 {[%clk 0:00:09.8]} 35... Rd4 {[%clk
0:00:12.1]} 36. a5 {[%clk 0:00:09.2]} 36... Rd3 {[%clk 0:00:10.9]} 37. f4 {[%clk
0:00:05.7]} 37... g4 {[%clk 0:00:09.5]} 38. Be5+ {[%clk 0:00:05.8]} 38... Kf5
{[%clk 0:00:10.1]} 39. Ka4 {[%clk 0:00:05.4]} 39... h5 {[%clk 0:00:10.3]} 40. b4
{[%clk 0:00:04.7]} 40... Rc8 {[%clk 0:00:10.5]} 41. Kb5 {[%clk 0:00:03.3]} 41...
Rc6 {[%clk 0:00:10.8]} 42. Re1 {[%clk 0:00:02]} 42... Rd5+ {[%clk 0:00:08.1]}
43. Ka4 {[%clk 0:00:01.8]} 43... Rc2 {[%clk 0:00:08.8]} 44. Bb8 {[%clk
0:00:01.1]} 44... Rxh2 {[%clk 0:00:08.4]} 45. Re8 {[%clk 0:00:01.2]} 45... g3
{[%clk 0:00:08.8]} 0-1

[Event "Late-Titled-Tuesday-Blitz-August-29-2023"]
[Site "Chess.com"]
[Date "2023.08.29"]
[Round "7"]
[White "Kleyton_Lima"]
[Black "lamomiajunior"]
[Result "1-0"]
[WhiteElo "2548"]
[BlackElo "2736"]
[TimeControl "180+1"]
[EndTime "15:16:53 PDT"]
[Termination "Kleyton_Lima won by resignation"]

1. e4 {[%clk 0:03:00.9]} 1... c5 {[%clk 0:03:00.6]} 2. Nf3 {[%clk 0:03:01.2]}
2... d6 {[%clk 0:03:01.2]} 3. d4 {[%clk 0:03:01.8]} 3... cxd4 {[%clk 0:03:02.1]}
4. Nxd4 {[%clk 0:03:02.7]} 4... Nf6 {[%clk 0:03:02.8]} 5. Nc3 {[%clk 0:03:03.4]}
5... a6 {[%clk 0:03:03.5]} 6. Bg5 {[%clk 0:03:02.8]} 6... Nbd7 {[%clk
0:03:04.1]} 7. Qe2 {[%clk 0:03:02.5]} 7... b5 {[%clk 0:03:01]} 8. O-O-O {[%clk
0:02:54.9]} 8... Bb7 {[%clk 0:03:01.4]} 9. f4 {[%clk 0:02:47.4]} 9... Rc8 {[%clk
0:02:59.5]} 10. e5 {[%clk 0:02:44.4]} 10... dxe5 {[%clk 0:02:39.5]} 11. fxe5
{[%clk 0:02:45.3]} 11... Rxc3 {[%clk 0:02:29.2]} 12. exf6 {[%clk 0:02:43.7]}
12... Rc5 {[%clk 0:02:28.6]} 13. fxe7 {[%clk 0:02:34.2]} 13... Bxe7 {[%clk
0:02:28.8]} 14. Bxe7 {[%clk 0:02:35.1]} 14... Qxe7 {[%clk 0:02:29.5]} 15. Qxe7+
{[%clk 0:02:36]} 15... Kxe7 {[%clk 0:02:30.4]} 16. Be2 {[%clk 0:02:31.4]} 16...
Rhc8 {[%clk 0:02:28.5]} 17. Bg4 {[%clk 0:02:20.6]} 17... R8c7 {[%clk 0:01:58.7]}
18. Bxd7 {[%clk 0:02:08.4]} 18... Rxd7 {[%clk 0:01:55.1]} 19. Rhe1+ {[%clk
0:01:58]} 19... Kd8 {[%clk 0:01:55.5]} 20. Nf3 {[%clk 0:01:57.1]} 20... Bxf3
{[%clk 0:01:52.3]} 21. gxf3 {[%clk 0:01:54]} 21... Rh5 {[%clk 0:01:44.2]} 22.
Rxd7+ {[%clk 0:01:53.1]} 22... Kxd7 {[%clk 0:01:44.2]} 23. Re2 {[%clk 0:01:53]}
23... Rh3 {[%clk 0:01:41.3]} 24. Rf2 {[%clk 0:01:53.1]} 24... Ke6 {[%clk
0:01:41.9]} 25. Kd2 {[%clk 0:01:53.2]} 25... Rh4 {[%clk 0:01:38]} 26. b3 {[%clk
0:01:43.6]} 26... Rd4+ {[%clk 0:01:37.3]} 27. Ke3 {[%clk 0:01:42]} 27... Rd1
{[%clk 0:01:37.9]} 28. c4 {[%clk 0:01:37.4]} 28... f5 {[%clk 0:01:25.7]} 29. Rc2
{[%clk 0:01:32.2]} 29... g5 {[%clk 0:01:04.9]} 30. c5 {[%clk 0:01:20]} 30... Kd5
{[%clk 0:00:34.8]} 31. f4 {[%clk 0:00:44.2]} 31... g4 {[%clk 0:00:29.7]} 32. c6
{[%clk 0:00:43.4]} 32... Re1+ {[%clk 0:00:30]} 33. Kf2 {[%clk 0:00:43.4]} 33...
Re8 {[%clk 0:00:29.5]} 34. c7 {[%clk 0:00:43.3]} 34... Rc8 {[%clk 0:00:25.7]}
35. Kg3 {[%clk 0:00:37.7]} 35... Ke4 {[%clk 0:00:20.5]} 36. Re2+ {[%clk
0:00:36.8]} 36... Kd4 {[%clk 0:00:18.1]} 37. Re7 {[%clk 0:00:37.7]} 37... h5
{[%clk 0:00:18]} 38. Kh4 {[%clk 0:00:36.7]} 38... Kc3 {[%clk 0:00:15.7]} 39.
Kxh5 {[%clk 0:00:34.2]} 39... Kb2 {[%clk 0:00:16.3]} 40. Re2+ {[%clk 0:00:28.4]}
40... Kb1 {[%clk 0:00:16.3]} 41. Kg5 {[%clk 0:00:27.5]} 41... Rxc7 {[%clk
0:00:16.8]} 42. Kxf5 {[%clk 0:00:27.7]} 42... Rg7 {[%clk 0:00:10.8]} 43. Kf6
{[%clk 0:00:27.8]} 43... Rg8 {[%clk 0:00:10.6]} 44. f5 {[%clk 0:00:27.8]} 44...
g3 {[%clk 0:00:11.2]} 45. hxg3 {[%clk 0:00:27.5]} 45... Rxg3 {[%clk 0:00:12.1]}
46. Ke7 {[%clk 0:00:24.9]} 46... Rc3 {[%clk 0:00:05.8]} 47. f6 {[%clk
0:00:23.3]} 47... Rc7+ {[%clk 0:00:06.1]} 48. Kf8 {[%clk 0:00:21.9]} 48... b4
{[%clk 0:00:01.6]} 49. f7 {[%clk 0:00:21.9]} 49... a5 {[%clk 0:00:02]} 50. Kg7
{[%clk 0:00:22]} 50... Ka1 {[%clk 0:00:01.6]} 51. Kg8 {[%clk 0:00:22.3]} 51...
Rc8+ {[%clk 0:00:01.1]} 52. f8=Q {[%clk 0:00:22.1]} 52... Rxf8+ {[%clk 0:00:02]}
53. Kxf8 {[%clk 0:00:23]} 53... a4 {[%clk 0:00:02.1]} 54. bxa4 {[%clk
0:00:22.8]} 1-0

[Event "Late-Titled-Tuesday-Blitz-August-29-2023"]
[Site "Chess.com"]
[Date "2023.08.29"]
[Round "7"]
[White "MaxLeto"]
[Black "ferrufino64"]
[Result "0-1"]
[WhiteElo "2390"]
[BlackElo "2139"]
[TimeControl "180+1"]
[EndTime "15:16:55 PDT"]
[Termination "ferrufino64 won on time"]

1. g4 {[%clk 0:02:55.1]} 1... d5 {[%clk 0:02:55.5]} 2. Bg2 {[%clk 0:02:55.1]}
2... e6 {[%clk 0:02:52.5]} 3. h4 {[%clk 0:02:53.9]} 3... b6 {[%clk 0:02:49.7]}
4. d4 {[%clk 0:02:52.6]} 4... Bb7 {[%clk 0:02:49.5]} 5. g5 {[%clk 0:02:52.8]}
5... c5 {[%clk 0:02:45.1]} 6. c3 {[%clk 0:02:53.1]} 6... Nc6 {[%clk 0:02:42.1]}
7. Nf3 {[%clk 0:02:49.8]} 7... Bd6 {[%clk 0:02:42.1]} 8. Na3 {[%clk 0:02:40.8]}
8... a6 {[%clk 0:02:41.4]} 9. Nc2 {[%clk 0:02:40.6]} 9... Nge7 {[%clk
0:02:38.2]} 10. Be3 {[%clk 0:02:19.3]} 10... c4 {[%clk 0:02:28.9]} 11. Qd2
{[%clk 0:02:18.4]} 11... Nf5 {[%clk 0:02:27.8]} 12. Bf4 {[%clk 0:02:16.1]} 12...
Qc7 {[%clk 0:02:28.3]} 13. Bxd6 {[%clk 0:01:46.2]} 13... Qxd6 {[%clk 0:02:19.8]}
14. Ne3 {[%clk 0:01:34]} 14... Nxe3 {[%clk 0:01:40.7]} 15. Qxe3 {[%clk
0:01:34.9]} 15... O-O-O {[%clk 0:01:35.2]} 16. b3 {[%clk 0:01:20.6]} 16... cxb3
{[%clk 0:01:32.4]} 17. axb3 {[%clk 0:01:21.5]} 17... Rhe8 {[%clk 0:01:32.4]} 18.
Ne5 {[%clk 0:01:07.4]} 18... Nxe5 {[%clk 0:01:29.6]} 19. dxe5 {[%clk 0:01:08.3]}
19... Qc7 {[%clk 0:01:23.2]} 20. O-O {[%clk 0:01:06.7]} 20... h6 {[%clk
0:01:20.2]} 21. Ra4 {[%clk 0:00:37.3]} 21... hxg5 {[%clk 0:01:18.5]} 22. hxg5
{[%clk 0:00:37.6]} 22... Kb8 {[%clk 0:01:15.9]} 23. Rb4 {[%clk 0:00:33]} 23...
b5 {[%clk 0:01:06.2]} 24. Ra1 {[%clk 0:00:33.6]} 24... Rh8 {[%clk 0:00:56]} 25.
c4 {[%clk 0:00:21.3]} 25... d4 {[%clk 0:00:51]} 26. Qg3 {[%clk 0:00:15.3]} 26...
Qc5 {[%clk 0:00:49.6]} 27. Bxb7 {[%clk 0:00:10.2]} 27... Kxb7 {[%clk 0:00:41.5]}
28. Raa4 {[%clk 0:00:09.8]} 28... Ra8 {[%clk 0:00:15]} 29. Qf3+ {[%clk
0:00:08.6]} 29... Kb6 {[%clk 0:00:12.8]} 30. cxb5 {[%clk 0:00:08.3]} 30... Qc1+
{[%clk 0:00:11.7]} 31. Kg2 {[%clk 0:00:06.9]} 31... Qh1+ {[%clk 0:00:11.5]} 32.
Kg3 {[%clk 0:00:07.3]} 32... Qh4+ {[%clk 0:00:08.6]} 33. Kg2 {[%clk 0:00:05.9]}
33... Qh1+ {[%clk 0:00:07.4]} 34. Kg3 {[%clk 0:00:06]} 34... Rh3+ {[%clk
0:00:08.1]} 35. Kf4 {[%clk 0:00:05.6]} 35... Rxf3+ {[%clk 0:00:08]} 36. exf3
{[%clk 0:00:04.8]} 36... a5 {[%clk 0:00:08.3]} 37. Rxd4 {[%clk 0:00:03.4]} 37...
Qc1+ {[%clk 0:00:07.4]} 38. Ke4 {[%clk 0:00:03.2]} 38... Qc2+ {[%clk 0:00:06.8]}
39. Ke3 {[%clk 0:00:03.2]} 39... Qc1+ {[%clk 0:00:05.6]} 40. Ke4 {[%clk
0:00:03.4]} 40... Kxb5 {[%clk 0:00:05.4]} 41. Rac4 {[%clk 0:00:03.3]} 41... Qb1+
{[%clk 0:00:05.1]} 42. Kf4 {[%clk 0:00:03.4]} 42... Qg6 {[%clk 0:00:03.1]} 43.
Re4 {[%clk 0:00:02]} 43... Rd8 {[%clk 0:00:03.1]} 44. Ke3 {[%clk 0:00:01.6]}
44... Rd5 {[%clk 0:00:03.4]} 45. f4 {[%clk 0:00:01.8]} 45... Qh5 {[%clk
0:00:03.2]} 46. f3 {[%clk 0:00:01.5]} 46... Qh1 {[%clk 0:00:03.3]} 0-1